Cogmind - Beta 11 @@@ ROGUE MODE // 2022.03.18 @ 21:23:33 Player: RNGesus Result: Self-destructed Performance ------------- Evolutions (3) 1500 Regions Visited (5) 1000 Robots Destroyed (99) 495 Value Destroyed (2581) 2581 Prototype IDs (4) 80 Alien Tech Used (0) 0 Bonus (-2) -2 TOTAL SCORE: 5654 Bonus ------- High Alert Combat Kills 277 Friendly Fire -279 Cogmind --------- Core Integrity 564/700 Matter 13/300 Energy 99/100 System Corruption 2% Temperature Cool (9) Movement Flying (34) Location -7/Factory Parts ------- > --- POWER (1) -------- (None) > --- PROPULSION (3) --- Improved Flight Unit Improved Flight Unit Improved Flight Unit > --- UTILITY (7) ------ Improved Signal Interpreter Hacking Suite > --- WEAPON (2) ------- (None) > --- INVENTORY (5) ---- Light Deuterium Engine Improved Sensor Array Transmission Jammer Hacking Suite System Shield Peak State ------------ > --- POWER ------------ Light Nuclear Core > --- PROPULSION ------- Improved Flight Unit Improved Flight Unit Improved Flight Unit > --- UTILITY ---------- Large Storage Unit Improved Signal Interpreter Seismic Detector Layered Light Armor Plating Hacking Suite > --- WEAPON ----------- Gauss Rifle Gauss Rifle > --- INVENTORY -------- Light Deuterium Engine Light Treads Improved Treads Improved Treads Improved Flight Unit Small Storage Unit Transmission Jammer Graphene Brace Hacking Suite Hacking Suite Hacking Suite Gauss Rifle Gauss Rifle Mini Grenade Launcher Katana [Rating: 36] Favorites ----------- Power Light Nuclear Core Engine Ion Engine Power Core Light Nuclear Core Propulsion Improved Treads Treads Improved Treads Leg Aluminum Leg Flight Unit Improved Flight Unit Utility Signal Interpreter Device Disposable Heat Sink Storage Large Storage Unit Processor Signal Interpreter Hackware Hacking Suite Protection Hardened Light Armor Plating Weapon Assault Rifle Energy Gun Medium Laser Ballistic Gun Assault Rifle Launcher Mini Grenade Launcher Special Weapon Plasma Cutter Slashing Weapon Katana Build | -11 -10 -10 -9 -8 -7 ------- Run | Scr Mat Min Mat Mat Fac Slots Evolved 6 | . . . 2 2 2 Power . | . . . . . . Propulsion 1 | . . . . 1 . Utility 5 | . . . 2 1 2 Weapon . | . . . . . . Parts Attached 89 | 6 9 2 42 26 4 Power 6 | 1 1 . 3 1 . Engine 2 | 1 1 . . . . Core 4 | . . . 3 1 . Reactor . | . . . . . . Propulsion 21 | 2 4 . 10 2 3 Treads 15 | 2 2 . 9 2 . Leg 2 | . 2 . . . . Wheel . | . . . . . . Hover . | . . . . . . Flight 4 | . . . 1 . 3 Utility 20 | 1 2 . 10 6 1 Device 3 | . . . 2 1 . Storage 6 | 1 . . 5 . . Processor 4 | . 2 . 1 1 . Hackware 2 | . . . . 1 1 Protection 5 | . . . 2 3 . Artifact . | . . . . . . Weapon 42 | 2 2 2 19 17 . Energy Gun 8 | 2 . 1 4 1 . Energy Cannon . | . . . . . . Ballistic Gun 21 | . 2 1 7 11 . Ballistic Cannon . | . . . . . . Launcher 8 | . . . 5 3 . Special Weapon 3 | . . . 2 1 . Impact Weapon . | . . . . . . Slashing Weapon 2 | . . . 1 1 . Piercing Weapon . | . . . . . . Special Melee Weapon . | . . . . . . Unidentified Prototypes 4 | . . . 3 1 . Corrupted Parts 1 | . . . 1 . . System Corruption 4 | . . . 4 . . Parts Lost 16 | . 3 2 7 2 2 Power 5 | . 1 . 2 1 1 Propulsion 5 | . 1 . 4 . . Utility 2 | . . . . 1 1 Weapon 4 | . 1 2 1 . . Highest Loss Streak 2 | . 2 1 2 2 2 To Critical Strikes . | . . . . . . Average Slot Usage (%) 94 | . 93 100 96 94 53 Engine 4 | . 14 14 1 . . Core 6 | . . . 8 7 7 Treads 22 | . 21 28 21 24 . Device 8 | . . . 11 15 . Storage 11 | . 14 14 11 9 . Processor 10 | . 8 14 11 9 7 Protection 6 | . . . 8 11 . Energy Gun 5 | . 14 12 2 . . Ballistic Gun 14 | . 13 15 16 14 . Special Weapon 1 | . . . 1 1 . Naked Turns . | . . . . . . Heaviest Build 95 | 11 14 14 95 42 5 Greatest Support 66 | 40 46 46 46 66 15 Greatest Overweight (x) 2 | . 1 . 2 . 1 Average Overweight (x) . | . . . . . . Largest Inventory Capacity 25 | 8 8 8 25 15 15 Average Capacity 12 | 7 8 8 14 15 5 Most Carried 16 | 2 8 6 16 15 15 Average Carried 11 | . 5 5 13 14 5 Final Capacity 15 | 8 8 8 15 15 5 Final Carried 15 | 2 6 6 15 15 5 Class Distribution -------------------- 72% | Mutant 23% | Scavenger-Mutant 3% | Hacker-Mutant Dominant Class ---------------- Mutant | -10/Materials Mutant | -10/Mines Mutant | -9/Materials Mutant | -8/Materials Hacker-Mutant | -7/Factory Resources | -11 -10 -10 -9 -8 -7 ----------- Run | Scr Mat Min Mat Mat Fac Matter Collected 2200 | 188 283 142 1214 373 . Remotely . | . . . . . . Salvage Created 3537 | . 379 239 2008 911 . Parts 224 | . 23 10 132 59 . Haulers Intercepted 8 | . 1 . 5 2 . Recyclers Shooed 1 | . . . 1 . . Parts Field Recycled . | . . . . . . Retrieved Matter . | . . . . . . Parts Self-Destructed . | . . . . . . Prevented . | . . . . . . Kills | -11 -10 -10 -9 -8 -7 ------- Run | Scr Mat Min Mat Mat Fac Combat Hostiles Destroyed 66 | . 7 7 33 19 . Guns 51 | . 7 7 27 10 . AOE 15 | . . . 6 9 . Classes Destroyed 13 | . 4 1 7 1 . Worker 5 | . . . 3 2 . Builder 2 | . . . 2 . . Tunneler 3 | . . . 2 1 . Hauler 8 | . 1 . 5 2 . Recycler 4 | . . . 2 2 . Operator 6 | . 1 . 3 2 . Watcher 5 | . 1 . 2 2 . Swarmer 14 | . . 3 3 8 . Grunt 35 | . 7 4 17 7 . Duelist 2 | . . . 2 . . Protector 1 | . . . 1 . . Sentry 13 | . . . 10 3 . Heavy 1 | . . . . 1 . Best Kill Streak 8 | . 2 3 6 8 . Combat Bots Only 5 | . 2 3 5 4 . Max Kills in Single Turn 7 | . 1 1 2 7 . Gunslinging . | . . . . . . Exploded 3 | . . . 1 3 . Melee . | . . . . . . Uniques/NPCs Destroyed . | . . . . . . Combat | -11 -10 -10 -9 -8 -7 -------- Run | Scr Mat Min Mat Mat Fac Damage Taken 4063 | . 714 304 1912 956 177 Core 710 | . 107 33 324 110 136 Absorbed by Shields . | . . . . . . Regen/Repaired (Parts) 47 | . . . 47 . . Core Remaining (%) 60 | 100 . 44 19 80 . Volleys Fired 285 | . 44 24 150 67 . Largest 2 | . 2 2 2 2 . Hottest 90 | . 90 70 86 56 . Shots Fired 522 | . 86 47 278 111 . Gun 477 | . 86 47 256 88 . Cannon . | . . . . . . Launcher 12 | . . . 7 5 . Special 33 | . . . 15 18 . Kinetic 382 | . 46 36 212 88 . Thermal 126 | . 40 11 57 18 . Explosive 9 | . . . 4 5 . Electromagnetic 5 | . . . 5 . . Robot Hit Streak 17 | . 11 13 15 17 . Robot Miss Streak 6 | . 3 3 5 6 . Penetration Max 1 | . . . . 1 . Secondary Targets 8 | . 2 . 2 4 . Max Gunslinging Chain 1 | . 1 . 1 1 . Shots Hit Robots 334 | . 58 31 182 63 . Core Hits 155 | . 20 13 83 38 1 Critical Kills 1 | . 1 . . . . Critical Parts Destroyed 2 | . . . 1 1 . Critical Strikes 5 | . 1 1 2 1 . Burn 2 | . . 1 1 . . Destroy 3 | . 1 . 1 1 . Melee Attacks 8 | . . . 2 6 . Impact . | . . . . . . Slashing 8 | . . . 2 6 . Piercing . | . . . . . . Sneak Attacks . | . . . . . . Combat Hostiles . | . . . . . . Follow-up Attacks . | . . . . . . Damage Inflicted 6755 | . 706 411 3212 2419 7 Guns 4830 | . 706 411 2546 1167 . Cannons . | . . . . . . Explosions 1743 | . . . 600 1143 . Melee . | . . . . . . Ramming 18 | . . . 11 . 7 Kinetic 3989 | . 425 313 2084 1167 . Thermal 1714 | . 281 98 547 788 . Explosive 798 | . . . 334 464 . Electromagnetic 236 | . . . 236 . . Impact . | . . . . . . Slashing . | . . . . . . Piercing . | . . . . . . Highest Corruption 8 | . 1 1 8 . 2 Average Corruption 2 | . 1 1 4 . 2 Corruption Purged . | . . . . . . Corruption Blocked . | . . . . . . Effects 46 | . . 5 39 . 2 Message Errors 13 | . . 2 11 . . Matter Fused 11 | . . . 10 . 1 Heat Flow Errors 5 | . . . 4 . 1 Energy Discharges 7 | . . 1 6 . . Data Loss (minor) 5 | . . 2 3 . . Data Loss (major) 3 | . . . 3 . . Misfires 2 | . . . 2 . . Overload Shots . | . . . . . . Overflow Damage 205 | . . . 7 198 . Projectiles 11 | . . . 1 10 . Explosions 194 | . . . 6 188 . Melee . | . . . . . . Knockbacks . | . . . . . . Impact . | . . . . . . Kinetic . | . . . . . . Secondary . | . . . . . . Self-Inflicted Damage 259 | . . . 84 172 3 Shots 8 | . . . 3 5 . Rammed 4 | . . . 2 . 2 Targets Rammed 4 | . . . 2 . 2 Kicked . | . . . . . . Crushed . | . . . . . . Highest Temperature 372 | . 372 141 215 153 168 Average Temperature 70 | . 131 54 61 56 90 Received Heat Transfer 1731 | . 402 120 843 360 6 Effects 4 | . 4 . . . . Shutdowns 1 | . 1 . . . . Energy Bleed 2 | . 2 . . . . Matter Decay 1 | . 1 . . . . Siege Activations . | . . . . . . Robots Corrupted . | . . . . . . Combat Hostiles . | . . . . . . Parts Fried 1 | . . . 1 . . Impact Corruptions . | . . . . . . Robots Melted . | . . . . . . Combat Hostiles . | . . . . . . Parts Melted 3 | . . . 1 2 . Heat Transferred 3197 | . 673 370 1284 870 . Parts Sabotaged . | . . . . . . Parts Stolen . | . . . . . . Parts Stripped . | . . . . . . Power Chain Reactions 2 | . . . 2 . . Missiles Intercepted . | . . . . . . Alert | -11 -10 -10 -9 -8 -7 ------- Run | Scr Mat Min Mat Mat Fac Peak Influence 804 | . 153 90 804 778 373 Initial 330 | . . 28 . 330 328 Average 272 | . 67 65 320 459 343 Maximum Alert Level 3 | . . . 3 3 1 Low Security (%) 58 | 100 100 100 57 . . Level 1 12 | . . . 2 50 100 Level 2 20 | . . . 26 37 . Level 3 8 | . . . 13 11 . Level 4 . | . . . . . . Level 5 . | . . . . . . High Security . | . . . . . . Max Security . | . . . . . . Squads Dispatched 9 | . 1 . 5 3 . Investigation . | . . . . . . Extermination . | . . . . . . Reinforcement 7 | . 1 . 3 3 . Assault 2 | . . . 2 . . Garrison . | . . . . . . Intercept . | . . . . . . Searches Triggered . | . . . . . . Construction Impeded 1 | . . . . 1 . Haulers Reinforced . | . . . . . . Active Scanning Responses . | . . . . . . Cargo Convoy Interrupts . | . . . . . . Stealth | -11 -10 -10 -9 -8 -7 --------- Run | Scr Mat Min Mat Mat Fac Distress Signals 10 | . . . 3 7 . Communications Jammed . | . . . . . . Distress Signals . | . . . . . . Times Spotted 130 | . 12 7 76 28 7 Peak Tracking Total 6 | . 2 3 6 5 5 Tactical Retreats 5 | . . . 3 1 1 Traps | -11 -10 -10 -9 -8 -7 ------- Run | Scr Mat Min Mat Mat Fac Traps Triggered 3 | . 2 . 1 . . Indirectly . | . . . . . . Trap Hack Attempts . | . . . . . . Triggered . | . . . . . . Disarmed . | . . . . . . Reprogrammed . | . . . . . . Reused . | . . . . . . Traps Extracted . | . . . . . . Installed . | . . . . . . Triggered . | . . . . . . Machines | -11 -10 -10 -9 -8 -7 ---------- Run | Scr Mat Min Mat Mat Fac Machines Disabled 5 | . . . 1 4 . Max in Single Turn 2 | . . . 1 2 . Machines Sabotaged . | . . . . . . Garrisons Compromised . | . . . . . . Overloaded Fab Kills . | . . . . . . Hacking | -11 -10 -10 -9 -8 -7 --------- Run | Scr Mat Min Mat Mat Fac Machines Accessed 17 | . 4 . 8 3 2 Terminals 14 | . 4 . 6 3 1 Fabricators . | . . . . . . Repair Stations 1 | . . . 1 . . Recycling Units 1 | . . . . . 1 Scanalyzers 1 | . . . 1 . . Garrison Access . | . . . . . . Total Hacks 47 | . 8 . 25 9 5 Successful 26 | . 3 . 14 5 4 Failed 21 | . 5 . 11 4 1 Catastrophic 7 | . 2 . 3 2 . Database Lockouts . | . . . . . . Manual 29 | . 7 . 14 6 2 Terminals 35 | . 8 . 16 9 2 Fabricators . | . . . . . . Repair Stations 2 | . . . 2 . . Recycling Units 3 | . . . . . 3 Scanalyzers 7 | . . . 7 . . Garrison Access . | . . . . . . Terminal Hacks 10 | . 1 . 5 3 1 Record 1 | . . . 1 . . Part Schematic 1 | . . . . 1 . Branch Access Points 1 | . . . 1 . . Terminal Index 1 | . . . 1 . . Recycling Unit Index 1 | . . . . . 1 Hauler Manifests 2 | . . . 1 1 . Registered Components 1 | . 1 . . . . Registered Prototypes 1 | . . . 1 . . Zone Layout 1 | . . . . 1 . Fabricator Hacks . | . . . . . . Repair Station Hacks 2 | . . . 2 . . Scan Component 1 | . . . 1 . . Repair 1 | . . . 1 . . Recycling Unit Hacks 3 | . . . . . 3 Process 1 | . . . . . 1 Retrieve Matter 2 | . . . . . 2 Scanalyzer 5 | . . . 5 . . Insert Component 2 | . . . 2 . . Analyze 3 | . . . 3 . . Garrison Access Hacks . | . . . . . . Unauthorized Hacks 6 | . 2 . 2 2 . Terminals 6 | . 2 . 2 2 . Track 1 | . 1 . . . . Assimilate 2 | . . . 1 1 . Operators 3 | . 1 . 1 1 . Fabricators . | . . . . . . Repair Stations . | . . . . . . Recycling Units . | . . . . . . Scanalyzers . | . . . . . . Garrison Access . | . . . . . . Data Cores Recovered . | . . . . . . Used . | . . . . . . Hacking Detections 15 | . 4 . 6 3 2 Full Trace Events 1 | . 1 . . . . Feedback Events . | . . . . . . Feedback Blocked . | . . . . . . Robot Schematics Acquired . | . . . . . . Robots Built . | . . . . . . Authchips . | . . . . . . Time . | . . . . . . Total Robot Build Rating . | . . . . . . Part Schematics Acquired 2 | . . . 2 . . Parts Built . | . . . . . . Authchips . | . . . . . . Time . | . . . . . . Total Part Build Rating . | . . . . . . Parts Repaired 1 | . . . 1 . . Time 26 | . . . 26 . . Parts Recycled . | . . . . . . Recycled Matter 3 | . . . . . 3 Retrieved Matter 3 | . . . . . 3 Retrieved Components . | . . . . . . Parts Scanalyzed 2 | . . . 2 . . Part Schematics Acquired 2 | . . . 2 . . Parts Damaged . | . . . . . . Bothacking | -11 -10 -10 -9 -8 -7 ------------ Run | Scr Mat Min Mat Mat Fac Used RIF Installer . | . . . . . . Robots Hacked . | . . . . . . Non-combat . | . . . . . . Combat . | . . . . . . Robot Hacks Applied . | . . . . . . Relay Couplers Released . | . . . . . . Fabnet Peak Effective % . | . . . . . . Robots Rewired . | . . . . . . Allies Hacked . | . . . . . . Hacks Repelled . | . . . . . . Allies | -11 -10 -10 -9 -8 -7 -------- Run | Scr Mat Min Mat Mat Fac Total Allies 1 | . . . . 1 . Largest Group 1 | . . . . 1 . Highest-Rated Group 26 | . . . . 26 . Highest-Rated Ally 26 | . . . . 26 . Total Orders . | . . . . . . Ally Attacks . | . . . . . . Total Damage . | . . . . . . Kills . | . . . . . . Allies Corrupted . | . . . . . . Allies Melted . | . . . . . . Intel | -11 -10 -10 -9 -8 -7 ------- Run | Scr Mat Min Mat Mat Fac Robot Analysis Total . | . . . . . . Derelict Logs Recovered 1 | . . 1 . . . Drone Launches . | . . . . . . Drone Recoveries . | . . . . . . Exploration | -11 -10 -10 -9 -8 -7 ------------- Run | Scr Mat Min Mat Mat Fac Turns Passed 5378 | 75 606 807 2834 881 175 Spaces Moved 2980 | 46 296 452 1342 383 461 Core 12 | 8 . . . . 4 Treads 2426 | 38 211 452 1342 383 . Legs 85 | . 85 . . . . Wheels . | . . . . . . Hover . | . . . . . . Flight 457 | . . . . . 457 Fastest Speed 34 | 50 120 160 160 160 34 Average Speed 143 | 140 148 160 168 160 34 Slowest Speed 320 | 160 190 160 320 160 100 Overloaded Moves . | . . . . . . Propulsion Burnouts . | . . . . . . Robots Hopped 2 | . . . . . 2 Cave-ins Triggered . | . . . . . . Exploration Rate (%) 46 | 3 44 93 85 41 15 Regions Visited 5 Branch Regions 1 Pre-discovered Areas 1 | . . 1 . . . Known Exits Taken 4 | . 1 1 1 1 . Unknown Exits Taken 1 | 1 . . . . . Scrap Searched 1 | . . 1 . . . Spaces Dug 17 | . . . 2 15 . Terrain Destroyed 125 | . . . 48 77 . Melee 8 | . . . 2 6 . Projectile 2 | . . . . 2 . AOE 115 | . . . 46 69 . Terrain Rammed . | . . . . . . Walls Destroyed . | . . . . . . Machines Disabled . | . . . . . . Actions | -11 -10 -10 -9 -8 -7 --------- Run | Scr Mat Min Mat Mat Fac Total 3551 | 53 377 489 1635 521 476 Wait 63 | . 14 10 32 5 2 Move 2971 | 45 295 451 1341 382 457 Hop 2 | . . . . . 2 Pick Up 64 | 2 8 2 35 15 2 Fast Attach 22 | 6 6 . 6 4 . Attach 21 | . 2 2 12 4 1 Detach 7 | . 2 . 5 . . Swap 46 | . 1 . 24 18 3 Drop 58 | . 5 . 26 20 7 Fire 285 | . 44 24 150 67 . Melee 8 | . . . 2 6 . Ram 2 | . . . . . 2 Kick . | . . . . . . Crush 2 | . . . 2 . . Escape Stasis . | . . . . . . Rewire . | . . . . . . Trap . | . . . . . . Miscellaneous . | . . . . . . Route ------- -11/Scrapyard -10/Materials (discovered 2 exits: *Mat / *Min) -10/Mines (discovered 2 exits: *Mat x2) -9/Materials (discovered 3 exits: *Mat x2 / *Min) -8/Materials -7/Factory History --------- Turn | Location | Event 13 | -11/Scrapyard | Discovered new exit (range 16) 76 | -11/Scrapyard | Entered Materials 328 | -10/Materials | Build established: Mutant 434 | -10/Materials | Discovered new exit (range 8) 667 | -10/Materials | Discovered new exit (range 10) 680 | -10/Materials | Identified exit to Mines 682 | -10/Materials | Entered Mines 686 | -10/Mines | Met a Derelict bent on vengeance 947 | -10/Mines | Discovered new exit (range 5) 1151 | -10/Mines | Core integrity fell below 50% 1321 | -10/Mines | Deemed a non-threat by the Exiles lab entrance 1479 | -10/Mines | Discovered new exit (range 7) 1480 | -10/Mines | Learned location of Storage (-7) 1487 | -10/Mines | Identified exit to Materials 1489 | -10/Mines | Entered Materials 1489 | -9/Materials | Evolved 2 slots: Utility x2 1490 | -9/Materials | Identified exit to Mines 1757 | -9/Materials | Repaired Sml. Storage Unit? 2993 | -9/Materials | Discovered new exit (range 15) 3337 | -9/Materials | Discovered new exit (range 3) 3345 | -9/Materials | Core integrity fell below 50% 3671 | -9/Materials | Build established: Scavenger-Mutant 3889 | -9/Materials | First assault squad dispatched 4187 | -9/Materials | Core integrity fell below 20% 4322 | -9/Materials | Identified exit to Materials 4323 | -9/Materials | Entered another Materials area 4323 | -8/Materials | Evolved 2 slots: Propulsion x1, Utility x1 5198 | -8/Materials | Discovered new exit (range 5) 5203 | -8/Materials | Identified exit to Factory 5204 | -8/Materials | Entered Factory 5204 | -7/Factory | Evolved 2 slots: Utility x2 5379 | -7/Factory | Self-destructed Last Messages --------------- 05290_ System corrupted: Matter fused (-9). 05294_ K-01 Serf collects debris. 05313_ K-01 Serf cleans the Terminal. 05317_ Connecting with Terminal... >>Index(Recycling Units) Found 6 recycling units. Downloaded coordinate data. 05344_ Connecting with Recycling Unit... >>Recycling(Process) Analyzing inventory... Recycling at 100% efficiency: System Restoration Module (2) Imp. Melee Analysis Suite (1) 05347_ Connecting with Recycling Unit... >>Retrieve(Matter) Matter ejected: 3 05351_ Fusion Modulator explodes. 05351_ Recycling Unit disabled. 05373_ Lgt. Nuclear Core destroyed. 05379_ Hacking Suite destroyed. Map ----- +----------------------------------------------------+ | """" """" """" ############## ########## | | ## ?### | | ## ?# | | ## # | | #####"""T"""########### # !]] | | ##########?????????# " !]] | | #??????????????????# # !] | | #??????????????????# # """ "" | | "" #??????????????????# !?# """ "? | | "" #?????????????????############# """ "? | | "" #?????????????????# # """ "? | | #?????????????????# # "? | | #?????????????????# # "? | | ####?????????????????# # "" | | ?????????????????????# # "" | | ?????????????????????# # ! "" | | ?????????????????????# # | | ?????????????????????#########+### | | ??????????????????????????# | | ??????????????????????????# | | ??????????????????????????# | | ??????????????????######### | | ?????????????????# """ # ? | | ?????????????????# "Y" # ######## ? | | ?????????????????# " " # #??????? ? | | ?????????????????# @# #???????? ?? | | ?????????????????# ! + +???????? ?? | | ?????????????????# # #????????? ##??? | | ????????????????#Y [[]# #?????????? #???? | | ????????????????## [[ # #??????????? ????? | | ?????????????????# [] # #????????????????? | | ?????????????????########## #????????????????? | | ??????????????????????????# #????????????????? | | ??????????????????????????# #????????????????? | | ??????????????????????????# #????????????????? | | ??????????????????????????# #????????????????? | | ??????????????????????????? #????????????????? | | ??????????????????????????? ????????????????? | | ??????????????????????????? ????????????????? | | ??????????????????????????? ? ???????????????? | | ??????????????????????????? ???????????????????? | | ?????????????????????????????????????????????????? | | ?????????????????????????????????????????????????? | | ?????????????????????????????????????????????????? | | ?????????????????????????????????????????????????? | | ?????????????????????????????????????????????????? | | ?????????????????????????????????????????????????? | | ?????????????????????????????????????????????????? | | ?????????????????????????????????????????????????? | | ?????????????????????????????????????????????????? | +----------------------------------------------------+ Best States ------------- Heat Dissipation 42 Coolant Potential 50 Energy Generation 14 Energy Capacity 250 Matter Stores 300 Matter Capacity 300 Sight Range 16 Terrain Scan Density 10 Armor Coverage 300 Evasion (%) 63 Targeting Accuracy 5 Recoil Reduction 3 Offensive Hacking 20 Item Schematics ----------------- Hacking Suite | -9/Materials | Scanalyzed Imp. Flight Unit | -9/Materials | Scanalyzed Robot Schematics ------------------ None Fabricated ------------ Nothing Alien Tech Used ----------------- None Achievements -------------- None Challenges ------------ None Game ------ Seed TargetCoolantScythe Manual? 0 Play Time 00:52:51 Cumulative 269.5 hours Start 2022.03.18 @ 18:07:51 End 2022.03.18 @ 21:23:33 Sessions 1 Manual Loads 0 Difficulty Rogue Special Mode None Game No. 421 Rogue 421 Adventurer 0 Explorer 0 Win Type - Total 5 Types 3/0/1/1/0/0/0/0/0 Lore% 76 Gallery% 76 Achievement% 62 Wizard Run 0 Options --------- ASCII 0 Keyboard 1 Movement Numpad Keybinds 0 Fullscreen 2 Font 24/Smallcaps Map View 76x50 Tactical HUD 1 Map Filters NONE Filters NONE Steam 1 RUN: 4e421496-8501-4556-8521-a78d15742f3d